[Event "Titled Tuesday Blitz February 21 Late 2023"]
[White "Zhurbinsky, David"]
[Black "Dzida, Kamil"]
[WhiteFideId "2072904"]
[BlackFideId "21828652"]
[WhiteElo "2045"]
[BlackElo "2352"]
[Result "1-0"]
[Round "06"]
[TimeControl "180+2"]
[Date "2023.02.21"]
[WhiteClock "0:00:03"]
[BlackClock "0:00:03"]

1. e4 {[%clk 0:02:56]}  c5 {[%clk 0:02:58]} 2. Nf3 {[%clk 0:02:55]}  d6 {[%clk 0:02:59]} 3. d4 {[%clk 0:02:55]}  cxd4 {[%clk 0:03:00]} 4. Nxd4 {[%clk 0:02:56]}  Nf6 {[%clk 0:03:00]} 5. f3 {[%clk 0:02:57]}  a6 {[%clk 0:02:53]} 6. c4 {[%clk 0:02:56]}  e5 {[%clk 0:02:53]} 7. Nc2 {[%clk 0:02:56]}  Be6 {[%clk 0:02:53]} 8. Nc3 {[%clk 0:02:56]}  Nbd7 {[%clk 0:02:53]} 9. Be3 {[%clk 0:02:55]}  Rc8 {[%clk 0:02:53]} 10. b3 {[%clk 0:02:42]}  g6 {[%clk 0:02:53]} 11. Be2 {[%clk 0:02:42]}  Nh5 {[%clk 0:02:53]} 12. Qd2 {[%clk 0:02:37]}  f5 {[%clk 0:02:21]} 13. exf5 {[%clk 0:02:34]}  gxf5 {[%clk 0:02:20]} 14. O-O {[%clk 0:02:08]}  f4 {[%clk 0:02:05]} 15. Bf2 {[%clk 0:02:08]}  Nhf6 {[%clk 0:02:00]} 16. Nb4 {[%clk 0:02:02]}  Be7 {[%clk 0:01:54]} 17. Nbd5 {[%clk 0:02:00]}  O-O {[%clk 0:01:53]} 18. Rfd1 {[%clk 0:01:52]}  Nxd5 {[%clk 0:01:45]} 19. Nxd5 {[%clk 0:01:46]}  Bh4 {[%clk 0:01:35]} 20. Bxh4 {[%clk 0:01:34]}  Qxh4 {[%clk 0:01:35]} 21. Bf1 {[%clk 0:01:22]}  Kh8 {[%clk 0:01:27]} 22. Nc3 {[%clk 0:01:20]}  Rf6 {[%clk 0:01:20]} 23. Qf2 {[%clk 0:01:08]}  Qh5 {[%clk 0:01:03]} 24. Rxd6 {[%clk 0:00:53]}  Rh6 {[%clk 0:01:02]} 25. h3 {[%clk 0:00:53]}  Rg8 {[%clk 0:01:00]} 26. Kh2 {[%clk 0:00:43]}  Rgg6 {[%clk 0:00:21]} 27. Rxe6 {[%clk 0:00:20]}  Rxe6 {[%clk 0:00:20]} 28. Ne4 {[%clk 0:00:20]}  Nf6 {[%clk 0:00:17]} 29. Nxf6 {[%clk 0:00:20]}  Rexf6 {[%clk 0:00:18]} 30. Rd1 {[%clk 0:00:21]}  Rd6 {[%clk 0:00:17]} 31. Qc5 {[%clk 0:00:19]}  Qg6 {[%clk 0:00:02]} 32. Qc8+ {[%clk 0:00:19]}  Kg7 {[%clk 0:00:02]} 33. Qc7+ {[%clk 0:00:19]}  Qf7 {[%clk 0:00:01]} 34. Qxd6 {[%clk 0:00:15]}  Rxd6 {[%clk 0:00:01]} 35. Rxd6 {[%clk 0:00:15]}  Qe7 {[%clk 0:00:02]} 36. c5 {[%clk 0:00:10]}  Qg5 {[%clk 0:00:01]} 37. Rd7+ {[%clk 0:00:05]}  Kf6 {[%clk 0:00:02]} 38. Rxb7 {[%clk 0:00:05]}  Qg3+ {[%clk 0:00:02]} 39. Kg1 {[%clk 0:00:05]}  e4 {[%clk 0:00:02]} 40. fxe4 {[%clk 0:00:03]}  f3 {[%clk 0:00:03]} 41. c6 {[%clk 0:00:03]} 1-0


[Site "https://www.chess.com"]

[Event "Titled Tuesday Blitz February 21 Late 2023"]
[White "Lorenzo De La Riva, Lazaro"]
[Black "Maltsevskaya, Aleksandra"]
[WhiteFideId "2268809"]
[BlackFideId "24174041"]
[WhiteElo "2404"]
[BlackElo "2390"]
[Result "0-1"]
[Round "06"]
[TimeControl "180+2"]
[Date "2023.02.21"]
[WhiteClock "0:00:06"]
[BlackClock "0:00:36"]

1. d4 {[%clk 0:03:00]}  Nf6 {[%clk 0:02:56]} 2. Nc3 {[%clk 0:03:01]}  d5 {[%clk 0:02:56]} 3. Bf4 {[%clk 0:03:01]}  e6 {[%clk 0:02:54]} 4. Nb5 {[%clk 0:02:56]}  Na6 {[%clk 0:02:54]} 5. e3 {[%clk 0:02:54]}  Be7 {[%clk 0:02:54]} 6. h4 {[%clk 0:02:52]}  O-O {[%clk 0:02:54]} 7. Be2 {[%clk 0:02:41]}  c6 {[%clk 0:02:55]} 8. Nc3 {[%clk 0:02:40]}  c5 {[%clk 0:02:55]} 9. a3 {[%clk 0:02:35]}  Ne4 {[%clk 0:02:52]} 10. Nxe4 {[%clk 0:02:23]}  dxe4 {[%clk 0:02:52]} 11. c3 {[%clk 0:02:08]}  Nc7 {[%clk 0:02:36]} 12. Qc2 {[%clk 0:02:06]}  Nd5 {[%clk 0:02:35]} 13. Qxe4 {[%clk 0:02:03]}  f5 {[%clk 0:02:30]} 14. Qf3 {[%clk 0:02:00]}  Qb6 {[%clk 0:02:30]} 15. O-O-O {[%clk 0:01:58]}  cxd4 {[%clk 0:02:29]} 16. exd4 {[%clk 0:01:55]}  Bd7 {[%clk 0:02:29]} 17. Be5 {[%clk 0:01:40]}  Rac8 {[%clk 0:02:29]} 18. Rd3 {[%clk 0:00:42]}  Qb3 {[%clk 0:02:16]} 19. Bd1 {[%clk 0:00:28]}  Qa2 {[%clk 0:02:13]} 20. Bc2 {[%clk 0:00:25]}  Bb5 {[%clk 0:02:00]} 21. Qg3 {[%clk 0:00:25]}  Rf7 {[%clk 0:01:57]} 22. Ne2 {[%clk 0:00:16]}  Bxd3 {[%clk 0:01:56]} 23. Qxd3 {[%clk 0:00:16]}  Qa1+ {[%clk 0:01:48]} 24. Bb1 {[%clk 0:00:16]}  Bxa3 {[%clk 0:01:48]} 25. Qc2 {[%clk 0:00:12]}  Nb4 {[%clk 0:01:44]} 26. Qb3 {[%clk 0:00:11]}  Nd3+ {[%clk 0:01:41]} 27. Kc2 {[%clk 0:00:12]}  Nxe5 {[%clk 0:01:21]} 28. dxe5 {[%clk 0:00:11]}  Bc5 {[%clk 0:01:20]} 29. Rd1 {[%clk 0:00:10]}  Qa6 {[%clk 0:01:18]} 30. Nf4 {[%clk 0:00:09]}  Re8 {[%clk 0:01:11]} 31. Ba2 {[%clk 0:00:09]}  Rfe7 {[%clk 0:01:08]} 32. Rd2 {[%clk 0:00:09]}  g6 {[%clk 0:01:04]} 33. Nd3 {[%clk 0:00:10]}  Qc6 {[%clk 0:01:00]} 34. h5 {[%clk 0:00:10]}  Kg7 {[%clk 0:01:00]} 35. hxg6 {[%clk 0:00:09]}  hxg6 {[%clk 0:01:00]} 36. f4 {[%clk 0:00:09]}  Be3 {[%clk 0:00:56]} 37. Re2 {[%clk 0:00:09]}  Bb6 {[%clk 0:00:54]} 38. g3 {[%clk 0:00:09]}  Rd8 {[%clk 0:00:53]} 39. Rh2 {[%clk 0:00:09]}  Red7 {[%clk 0:00:47]} 40. Qc4 {[%clk 0:00:06]}  Rxd3 {[%clk 0:00:45]} 41. Qxc6 {[%clk 0:00:06]}  bxc6 {[%clk 0:00:45]} 42. Bxe6 {[%clk 0:00:07]}  Rxg3 {[%clk 0:00:44]} 43. Bc4 {[%clk 0:00:07]}  Rf3 {[%clk 0:00:39]} 44. Kb3 {[%clk 0:00:07]}  Rxf4 {[%clk 0:00:38]} 45. e6 {[%clk 0:00:07]}  Rb8 {[%clk 0:00:37]} 46. Ka2 {[%clk 0:00:06]}  Rxc4 {[%clk 0:00:36]} 0-1


[Site "https://www.chess.com"]

[Event "Titled Tuesday Blitz February 21 Late 2023"]
[White "Fernandez Siles, Luis"]
[Black "Sielecki, Christof"]
[WhiteFideId "2209420"]
[BlackFideId "4620437"]
[WhiteElo "2218"]
[BlackElo "2419"]
[Result "0-1"]
[Round "06"]
[TimeControl "180+2"]
[Date "2023.02.21"]
[WhiteClock "0:00:51"]
[BlackClock "0:01:13"]

1. d4 {[%clk 0:03:00]}  d5 {[%clk 0:02:59]} 2. c4 {[%clk 0:03:00]}  e6 {[%clk 0:02:59]} 3. Nc3 {[%clk 0:02:59]}  Nf6 {[%clk 0:03:00]} 4. Nf3 {[%clk 0:02:59]}  a6 {[%clk 0:03:00]} 5. e3 {[%clk 0:02:58]}  Nbd7 {[%clk 0:02:59]} 6. a3 {[%clk 0:02:55]}  dxc4 {[%clk 0:02:56]} 7. Bxc4 {[%clk 0:02:55]}  b5 {[%clk 0:02:57]} 8. Ba2 {[%clk 0:02:53]}  Bb7 {[%clk 0:02:56]} 9. O-O {[%clk 0:02:52]}  c5 {[%clk 0:02:57]} 10. Qe2 {[%clk 0:02:51]}  Be7 {[%clk 0:02:48]} 11. Rd1 {[%clk 0:02:49]}  Qb6 {[%clk 0:02:44]} 12. dxc5 {[%clk 0:02:23]}  Nxc5 {[%clk 0:02:33]} 13. b4 {[%clk 0:02:20]}  Nce4 {[%clk 0:02:33]} 14. Bb2 {[%clk 0:02:13]}  O-O {[%clk 0:02:20]} 15. Ne5 {[%clk 0:02:08]}  Nxc3 {[%clk 0:02:13]} 16. Bxc3 {[%clk 0:02:07]}  Rad8 {[%clk 0:02:04]} 17. Bd4 {[%clk 0:02:01]}  Qc7 {[%clk 0:02:04]} 18. Rac1 {[%clk 0:01:59]}  Qb8 {[%clk 0:02:03]} 19. f3 {[%clk 0:01:44]}  Rc8 {[%clk 0:01:58]} 20. e4 {[%clk 0:01:22]}  Rxc1 {[%clk 0:01:56]} 21. Rxc1 {[%clk 0:01:21]}  Bd6 {[%clk 0:01:53]} 22. Qb2 {[%clk 0:01:11]}  Rc8 {[%clk 0:01:44]} 23. Rd1 {[%clk 0:01:05]}  h5 {[%clk 0:01:31]} 24. h4 {[%clk 0:01:03]}  Rd8 {[%clk 0:01:20]} 25. Bc5 {[%clk 0:00:51]}  Bxc5+ {[%clk 0:01:13]} 0-1


[Site "https://www.chess.com"]

[Event "Titled Tuesday Blitz February 21 Late 2023"]
[White "Ballester Llagaria, Luis Eduardo"]
[Black "Bach, Matthias"]
[WhiteFideId "2297620"]
[BlackFideId "4603168"]
[WhiteElo "2298"]
[BlackElo "2214"]
[Result "1-0"]
[Round "06"]
[TimeControl "180+2"]
[Date "2023.02.21"]
[WhiteClock "0:00:21"]
[BlackClock "0:00:02"]

1. e4 {[%clk 0:03:00]}  e5 {[%clk 0:02:59]} 2. Nf3 {[%clk 0:03:00]}  Nc6 {[%clk 0:02:58]} 3. Bc4 {[%clk 0:03:00]}  Nf6 {[%clk 0:02:55]} 4. d4 {[%clk 0:02:57]}  exd4 {[%clk 0:02:53]} 5. e5 {[%clk 0:02:58]}  d5 {[%clk 0:02:53]} 6. Bb5 {[%clk 0:02:58]}  Ne4 {[%clk 0:02:53]} 7. Nxd4 {[%clk 0:02:59]}  Bc5 {[%clk 0:02:52]} 8. Be3 {[%clk 0:02:54]}  Bd7 {[%clk 0:02:48]} 9. Bxc6 {[%clk 0:02:54]}  bxc6 {[%clk 0:02:47]} 10. O-O {[%clk 0:02:45]}  Qe7 {[%clk 0:02:41]} 11. f3 {[%clk 0:02:44]}  Nd6 {[%clk 0:02:26]} 12. f4 {[%clk 0:02:43]}  Nf5 {[%clk 0:02:22]} 13. Bf2 {[%clk 0:02:33]}  Bxd4 {[%clk 0:02:15]} 14. Bxd4 {[%clk 0:02:33]}  c5 {[%clk 0:02:16]} 15. Bf2 {[%clk 0:02:33]}  d4 {[%clk 0:02:16]} 16. Nd2 {[%clk 0:02:30]}  Bc6 {[%clk 0:02:14]} 17. Nf3 {[%clk 0:02:28]}  O-O {[%clk 0:02:09]} 18. Qd3 {[%clk 0:02:25]}  g6 {[%clk 0:02:03]} 19. b3 {[%clk 0:02:15]}  h5 {[%clk 0:01:59]} 20. a4 {[%clk 0:02:15]}  h4 {[%clk 0:01:50]} 21. Rae1 {[%clk 0:02:03]}  Rfe8 {[%clk 0:01:46]} 22. Ng5 {[%clk 0:02:02]}  Rad8 {[%clk 0:01:38]} 23. Qh3 {[%clk 0:02:00]}  f6 {[%clk 0:01:06]} 24. exf6 {[%clk 0:01:50]}  Qxf6 {[%clk 0:01:05]} 25. Bxh4 {[%clk 0:01:50]}  Re3 {[%clk 0:00:53]} 26. Bg3 {[%clk 0:01:39]}  Rde8 {[%clk 0:00:43]} 27. Qh7+ {[%clk 0:01:31]}  Kf8 {[%clk 0:00:42]} 28. Qxc7 {[%clk 0:01:32]}  R8e7 {[%clk 0:00:30]} 29. Nh7+ {[%clk 0:00:50]}  Kf7 {[%clk 0:00:30]} 30. Nxf6 {[%clk 0:00:48]}  Rxc7 {[%clk 0:00:29]} 31. Ng4 {[%clk 0:00:49]}  Rxe1 {[%clk 0:00:24]} 32. Rxe1 {[%clk 0:00:50]}  Bd5 {[%clk 0:00:18]} 33. Ne5+ {[%clk 0:00:48]}  Kg7 {[%clk 0:00:17]} 34. Bf2 {[%clk 0:00:47]}  Nd6 {[%clk 0:00:14]} 35. Nd3 {[%clk 0:00:36]}  Ne4 {[%clk 0:00:13]} 36. Bg3 {[%clk 0:00:36]}  c4 {[%clk 0:00:10]} 37. bxc4 {[%clk 0:00:32]}  Rxc4 {[%clk 0:00:11]} 38. Nf2 {[%clk 0:00:28]}  Nxg3 {[%clk 0:00:10]} 39. hxg3 {[%clk 0:00:27]}  Rxc2 {[%clk 0:00:10]} 40. Rd1 {[%clk 0:00:28]}  d3 {[%clk 0:00:07]} 41. Rxd3 {[%clk 0:00:26]}  Rc1+ {[%clk 0:00:07]} 42. Kh2 {[%clk 0:00:26]}  Be6 {[%clk 0:00:07]} 43. Rd6 {[%clk 0:00:23]}  Bc8 {[%clk 0:00:04]} 44. Nd3 {[%clk 0:00:21]}  Rc3 {[%clk 0:00:04]} 45. Ne5 {[%clk 0:00:21]}  g5 {[%clk 0:00:03]} 46. Rg6+ {[%clk 0:00:20]}  Kh7 {[%clk 0:00:02]} 47. Rxg5 {[%clk 0:00:21]} 1-0


[Site "https://www.chess.com"]

[Event "Titled Tuesday Blitz February 21 Late 2023"]
[White "Dourerassou, Jonathan"]
[Black "reevecanada"]
[WhiteFideId "628050"]
[WhiteElo "2414"]
[BlackElo "2441"]
[Result "1-0"]
[Round "06"]
[TimeControl "180+2"]
[Date "2023.02.21"]
[WhiteClock "0:01:25"]
[BlackClock "0:01:02"]

1. d4 {[%clk 0:02:50]}  Nf6 {[%clk 0:02:56]} 2. Bg5 {[%clk 0:02:49]}  Ne4 {[%clk 0:02:55]} 3. Bf4 {[%clk 0:02:48]}  d5 {[%clk 0:02:55]} 4. Nd2 {[%clk 0:02:48]}  e6 {[%clk 0:02:51]} 5. Ngf3 {[%clk 0:02:47]}  Be7 {[%clk 0:02:49]} 6. e3 {[%clk 0:02:47]}  O-O {[%clk 0:02:49]} 7. Bd3 {[%clk 0:02:48]}  f5 {[%clk 0:02:49]} 8. O-O {[%clk 0:02:47]}  b6 {[%clk 0:02:47]} 9. Ne5 {[%clk 0:02:47]}  Bb7 {[%clk 0:02:47]} 10. f3 {[%clk 0:02:47]}  Nxd2 {[%clk 0:02:46]} 11. Qxd2 {[%clk 0:02:48]}  Nd7 {[%clk 0:02:45]} 12. c4 {[%clk 0:02:41]}  Nxe5 {[%clk 0:02:44]} 13. Bxe5 {[%clk 0:02:42]}  Bd6 {[%clk 0:02:44]} 14. f4 {[%clk 0:02:36]}  Bxe5 {[%clk 0:02:42]} 15. fxe5 {[%clk 0:02:36]}  c5 {[%clk 0:02:42]} 16. Rad1 {[%clk 0:02:30]}  Qg5 {[%clk 0:02:39]} 17. Qf2 {[%clk 0:02:28]}  cxd4 {[%clk 0:02:33]} 18. exd4 {[%clk 0:02:27]}  f4 {[%clk 0:02:34]} 19. Qf3 {[%clk 0:02:16]}  Rab8 {[%clk 0:02:21]} 20. Qh3 {[%clk 0:02:16]}  dxc4 {[%clk 0:02:11]} 21. Qxh7+ {[%clk 0:02:05]}  Kf7 {[%clk 0:02:11]} 22. Bg6+ {[%clk 0:02:03]}  Ke7 {[%clk 0:01:06]} 23. Qxg7+ {[%clk 0:01:38]}  Kd8 {[%clk 0:01:05]} 24. Qxf8+ {[%clk 0:01:38]}  Kc7 {[%clk 0:01:05]} 25. Qd6+ {[%clk 0:01:36]}  Kc8 {[%clk 0:01:05]} 26. Qxe6+ {[%clk 0:01:37]}  Kc7 {[%clk 0:01:05]} 27. Qf7+ {[%clk 0:01:27]}  Kd8 {[%clk 0:01:02]} 28. Qf6+ {[%clk 0:01:24]}  Qxf6 {[%clk 0:01:02]} 29. exf6 {[%clk 0:01:25]}  Kd7 {[%clk 0:01:02]} 30. Rxf4 {[%clk 0:01:25]} 1-0


[Site "https://www.chess.com"]

[Event "Titled Tuesday Blitz February 21 Late 2023"]
[White "Moral Garcia, Serafin"]
[Black "Prydun, Andriy"]
[WhiteFideId "2201925"]
[BlackFideId "14145898"]
[WhiteElo "2238"]
[BlackElo "2134"]
[Result "0-1"]
[Round "06"]
[TimeControl "180+2"]
[Date "2023.02.21"]
[WhiteClock "0:00:08"]
[BlackClock "0:00:04"]

1. e4 {[%clk 0:03:00]}  d5 {[%clk 0:01:14]} 2. exd5 {[%clk 0:02:58]}  Qxd5 {[%clk 0:01:15]} 3. Nc3 {[%clk 0:02:58]}  Qd8 {[%clk 0:01:15]} 4. d4 {[%clk 0:02:58]}  Nf6 {[%clk 0:01:15]} 5. g3 {[%clk 0:02:56]}  c6 {[%clk 0:01:15]} 6. Bg2 {[%clk 0:02:56]}  Bg4 {[%clk 0:01:15]} 7. Nf3 {[%clk 0:02:56]}  Nbd7 {[%clk 0:01:16]} 8. h3 {[%clk 0:02:57]}  Bxf3 {[%clk 0:01:15]} 9. Bxf3 {[%clk 0:02:56]}  e6 {[%clk 0:01:16]} 10. O-O {[%clk 0:02:56]}  Bd6 {[%clk 0:01:16]} 11. Bg2 {[%clk 0:02:53]}  O-O {[%clk 0:01:17]} 12. Ne2 {[%clk 0:02:53]}  Qc7 {[%clk 0:01:16]} 13. c4 {[%clk 0:02:52]}  Rad8 {[%clk 0:01:13]} 14. Qc2 {[%clk 0:02:46]}  a6 {[%clk 0:01:09]} 15. a4 {[%clk 0:02:44]}  c5 {[%clk 0:01:09]} 16. Be3 {[%clk 0:02:39]}  cxd4 {[%clk 0:01:08]} 17. Bxd4 {[%clk 0:02:29]}  Bc5 {[%clk 0:01:03]} 18. Bc3 {[%clk 0:02:26]}  Qb6 {[%clk 0:00:58]} 19. a5 {[%clk 0:02:23]}  Qc7 {[%clk 0:00:52]} 20. b4 {[%clk 0:02:22]}  Be7 {[%clk 0:00:51]} 21. Qb3 {[%clk 0:01:47]}  Rc8 {[%clk 0:00:49]} 22. Rfc1 {[%clk 0:01:40]}  Nb8 {[%clk 0:00:47]} 23. Bd4 {[%clk 0:01:35]}  Nc6 {[%clk 0:00:47]} 24. Bb6 {[%clk 0:01:35]}  Qe5 {[%clk 0:00:43]} 25. Nf4 {[%clk 0:01:28]}  Bd8 {[%clk 0:00:31]} 26. Nd3 {[%clk 0:01:16]}  Qf5 {[%clk 0:00:30]} 27. Nc5 {[%clk 0:01:13]}  Bxb6 {[%clk 0:00:26]} 28. axb6 {[%clk 0:01:11]}  Nxb4 {[%clk 0:00:24]} 29. Nxb7 {[%clk 0:01:07]}  Nd3 {[%clk 0:00:23]} 30. Rc2 {[%clk 0:01:03]}  Qe5 {[%clk 0:00:12]} 31. Rd1 {[%clk 0:00:57]}  Ne1 {[%clk 0:00:12]} 32. Ra2 {[%clk 0:00:48]}  Nxg2 {[%clk 0:00:12]} 33. Kxg2 {[%clk 0:00:49]}  Qe4+ {[%clk 0:00:10]} 34. Qf3 {[%clk 0:00:48]}  Qxc4 {[%clk 0:00:10]} 35. Rda1 {[%clk 0:00:36]}  Qc6 {[%clk 0:00:08]} 36. Rxa6 {[%clk 0:00:36]}  Nd5 {[%clk 0:00:07]} 37. Na5 {[%clk 0:00:33]}  Qc2 {[%clk 0:00:04]} 38. b7 {[%clk 0:00:32]}  Rc3 {[%clk 0:00:04]} 39. Ra8 {[%clk 0:00:27]}  Qb2 {[%clk 0:00:04]} 40. Qe4 {[%clk 0:00:17]}  Ne3+ {[%clk 0:00:04]} 41. Qxe3 {[%clk 0:00:14]}  Rxe3 {[%clk 0:00:04]} 42. Nc6 {[%clk 0:00:10]}  Qxb7 {[%clk 0:00:03]} 43. Rxf8+ {[%clk 0:00:08]}  Kxf8 {[%clk 0:00:04]} 44. fxe3 {[%clk 0:00:08]}  Qxc6+ {[%clk 0:00:04]} 0-1


[Site "https://www.chess.com"]

[Event "Titled Tuesday Blitz February 21 Late 2023"]
[White "Petukhov, Dmitry"]
[Black "Seletsky, Grigory"]
[WhiteFideId "4142748"]
[BlackFideId "14112191"]
[WhiteElo "2350"]
[BlackElo "2259"]
[Result "1-0"]
[Round "06"]
[TimeControl "180+2"]
[Date "2023.02.21"]
[WhiteClock "0:00:56"]
[BlackClock "0:00:24"]

1. e4 {[%clk 0:03:00]}  e6 {[%clk 0:02:59]} 2. d4 {[%clk 0:02:59]}  d5 {[%clk 0:02:59]} 3. e5 {[%clk 0:02:59]}  c5 {[%clk 0:02:59]} 4. c3 {[%clk 0:03:00]}  Nc6 {[%clk 0:02:59]} 5. Nf3 {[%clk 0:03:00]}  Bd7 {[%clk 0:02:59]} 6. a3 {[%clk 0:03:00]}  Rc8 {[%clk 0:02:59]} 7. Be3 {[%clk 0:02:59]}  cxd4 {[%clk 0:02:58]} 8. cxd4 {[%clk 0:02:59]}  Nge7 {[%clk 0:02:58]} 9. Bd3 {[%clk 0:02:58]}  a6 {[%clk 0:02:23]} 10. O-O {[%clk 0:02:57]}  Na7 {[%clk 0:02:21]} 11. Nc3 {[%clk 0:02:55]}  Ng6 {[%clk 0:02:16]} 12. Rc1 {[%clk 0:02:50]}  Be7 {[%clk 0:02:16]} 13. b4 {[%clk 0:02:45]}  O-O {[%clk 0:02:15]} 14. Re1 {[%clk 0:02:44]}  Bb5 {[%clk 0:02:04]} 15. Nxb5 {[%clk 0:02:43]}  Nxb5 {[%clk 0:02:03]} 16. Qb3 {[%clk 0:02:35]}  Qd7 {[%clk 0:01:59]} 17. a4 {[%clk 0:02:22]}  Na7 {[%clk 0:01:59]} 18. b5 {[%clk 0:02:18]}  a5 {[%clk 0:01:57]} 19. g3 {[%clk 0:02:13]}  b6 {[%clk 0:01:47]} 20. h4 {[%clk 0:02:10]}  Rxc1 {[%clk 0:01:46]} 21. Rxc1 {[%clk 0:02:09]}  Rc8 {[%clk 0:01:47]} 22. h5 {[%clk 0:02:09]}  Rxc1+ {[%clk 0:01:45]} 23. Bxc1 {[%clk 0:02:10]}  Nf8 {[%clk 0:01:43]} 24. Qc2 {[%clk 0:02:06]}  Qc8 {[%clk 0:01:42]} 25. Qxc8 {[%clk 0:01:50]}  Nxc8 {[%clk 0:01:41]} 26. g4 {[%clk 0:01:50]}  f6 {[%clk 0:01:33]} 27. Bf4 {[%clk 0:01:44]}  Nd7 {[%clk 0:01:30]} 28. Kg2 {[%clk 0:01:35]}  fxe5 {[%clk 0:01:29]} 29. Nxe5 {[%clk 0:01:36]}  Nxe5 {[%clk 0:01:29]} 30. Bxe5 {[%clk 0:01:37]}  Bd6 {[%clk 0:01:29]} 31. f4 {[%clk 0:01:28]}  h6 {[%clk 0:01:26]} 32. Kf3 {[%clk 0:01:27]}  Kf7 {[%clk 0:01:26]} 33. Bg6+ {[%clk 0:01:26]}  Kf8 {[%clk 0:01:26]} 34. f5 {[%clk 0:01:20]}  Bxe5 {[%clk 0:01:16]} 35. dxe5 {[%clk 0:01:19]}  Ne7 {[%clk 0:01:07]} 36. Ke3 {[%clk 0:01:10]}  Nxg6 {[%clk 0:00:59]} 37. hxg6 {[%clk 0:01:10]}  Ke7 {[%clk 0:00:52]} 38. Kd4 {[%clk 0:01:04]}  Kd7 {[%clk 0:00:27]} 39. f6 {[%clk 0:01:00]}  gxf6 {[%clk 0:00:25]} 40. g7 {[%clk 0:00:59]}  fxe5+ {[%clk 0:00:24]} 41. Kxe5 {[%clk 0:00:56]} 1-0


[Site "https://www.chess.com"]

[Event "Titled Tuesday Blitz February 21 Late 2023"]
[White "Haszon, David"]
[Black "Filgueira, Hernan"]
[WhiteFideId "733610"]
[BlackFideId "101770"]
[WhiteElo "2264"]
[BlackElo "2283"]
[Result "0-1"]
[Round "06"]
[TimeControl "180+2"]
[Date "2023.02.21"]
[WhiteClock "0:00:02"]
[BlackClock "0:00:13"]

1. d4 {[%clk 0:03:00]}  d6 {[%clk 0:02:59]} 2. Nc3 {[%clk 0:02:59]}  Nf6 {[%clk 0:02:59]} 3. e4 {[%clk 0:02:58]}  e5 {[%clk 0:02:58]} 4. Nf3 {[%clk 0:02:57]}  Nbd7 {[%clk 0:02:58]} 5. Bc4 {[%clk 0:02:55]}  Be7 {[%clk 0:02:58]} 6. O-O {[%clk 0:02:36]}  O-O {[%clk 0:02:57]} 7. Qe2 {[%clk 0:02:36]}  exd4 {[%clk 0:02:37]} 8. Nxd4 {[%clk 0:02:35]}  Ne5 {[%clk 0:02:37]} 9. Bb3 {[%clk 0:02:33]}  c5 {[%clk 0:02:37]} 10. Nf5 {[%clk 0:02:16]}  Bxf5 {[%clk 0:02:31]} 11. exf5 {[%clk 0:02:17]}  Nc6 {[%clk 0:02:24]} 12. Nd5 {[%clk 0:01:59]}  Re8 {[%clk 0:02:22]} 13. c3 {[%clk 0:01:52]}  Nxd5 {[%clk 0:02:11]} 14. Bxd5 {[%clk 0:01:52]}  Bf6 {[%clk 0:02:12]} 15. Qc4 {[%clk 0:01:39]}  Qd7 {[%clk 0:02:11]} 16. Bf4 {[%clk 0:01:38]}  a6 {[%clk 0:02:06]} 17. a4 {[%clk 0:01:37]}  Be5 {[%clk 0:01:55]} 18. Bxe5 {[%clk 0:01:25]}  Nxe5 {[%clk 0:01:54]} 19. Qf4 {[%clk 0:01:15]}  Rab8 {[%clk 0:01:38]} 20. Rad1 {[%clk 0:01:10]}  Qe7 {[%clk 0:01:36]} 21. h3 {[%clk 0:00:58]}  b5 {[%clk 0:01:35]} 22. a5 {[%clk 0:00:54]}  c4 {[%clk 0:01:28]} 23. Rfe1 {[%clk 0:00:41]}  Qf6 {[%clk 0:01:24]} 24. Be4 {[%clk 0:00:39]}  b4 {[%clk 0:01:14]} 25. Rd4 {[%clk 0:00:36]}  h6 {[%clk 0:01:05]} 26. Red1 {[%clk 0:00:36]}  Red8 {[%clk 0:01:05]} 27. Qd2 {[%clk 0:00:29]}  bxc3 {[%clk 0:01:04]} 28. bxc3 {[%clk 0:00:28]}  Rb5 {[%clk 0:00:46]} 29. Rxd6 {[%clk 0:00:27]}  Rxd6 {[%clk 0:00:45]} 30. Qxd6 {[%clk 0:00:28]}  Qxd6 {[%clk 0:00:45]} 31. Rxd6 {[%clk 0:00:29]}  Rxa5 {[%clk 0:00:43]} 32. f4 {[%clk 0:00:21]}  Nd3 {[%clk 0:00:37]} 33. Rd8+ {[%clk 0:00:20]}  Kh7 {[%clk 0:00:36]} 34. f6+ {[%clk 0:00:21]}  g6 {[%clk 0:00:36]} 35. Rf8 {[%clk 0:00:18]}  Nxf4 {[%clk 0:00:34]} 36. Rxf7+ {[%clk 0:00:18]}  Kg8 {[%clk 0:00:34]} 37. Rg7+ {[%clk 0:00:18]}  Kf8 {[%clk 0:00:34]} 38. Ra7 {[%clk 0:00:14]}  Re5 {[%clk 0:00:30]} 39. Bf3 {[%clk 0:00:13]}  Re6 {[%clk 0:00:29]} 40. f7 {[%clk 0:00:13]}  Re7 {[%clk 0:00:27]} 41. Rxa6 {[%clk 0:00:12]}  Kxf7 {[%clk 0:00:28]} 42. Rc6 {[%clk 0:00:12]}  g5 {[%clk 0:00:21]} 43. Rxc4 {[%clk 0:00:12]}  Re1+ {[%clk 0:00:21]} 44. Kh2 {[%clk 0:00:10]}  Rc1 {[%clk 0:00:22]} 45. Rc6 {[%clk 0:00:10]}  h5 {[%clk 0:00:20]} 46. Rc5 {[%clk 0:00:10]}  Kf6 {[%clk 0:00:19]} 47. Rc6+ {[%clk 0:00:08]}  Kf5 {[%clk 0:00:18]} 48. Rc5+ {[%clk 0:00:08]}  Kf6 {[%clk 0:00:18]} 49. Be4 {[%clk 0:00:06]}  h4 {[%clk 0:00:17]} 50. Rf5+ {[%clk 0:00:06]}  Ke6 {[%clk 0:00:18]} 51. Rxg5 {[%clk 0:00:05]}  Ne2 {[%clk 0:00:17]} 52. g4 {[%clk 0:00:05]}  hxg3+ {[%clk 0:00:15]} 53. Kg2 {[%clk 0:00:05]}  Rxc3 {[%clk 0:00:15]} 54. Rg4 {[%clk 0:00:03]}  Ke5 {[%clk 0:00:15]} 55. Ba8 {[%clk 0:00:01]}  Nf4+ {[%clk 0:00:15]} 56. Rxf4 {[%clk 0:00:01]}  Kxf4 {[%clk 0:00:15]} 57. h4 {[%clk 0:00:01]}  Rc2+ {[%clk 0:00:15]} 58. Kh3 {[%clk 0:00:02]}  Rh2# {[%clk 0:00:13]} 0-1


[Site "https://www.chess.com"]